[Event "Fagernes GM Open Autumn 2024"]
[Site "Fagernes"]
[Date "2024.10.13"]
[Round "9.9"]
[White "Blomqvist, Erik"]
[Black "Laddha, Shubh Jayesh"]
[Result "1-0"]
[ECO "C64"]
[WhiteElo "2483"]
[BlackElo "2308"]
[Annotator "TA"]
[PlyCount "115"]
[EventDate "2024.10.03"]
[EventType "swiss"]
[EventCountry "NOR"]
[SourceTitle "playchess.com"]
[Source "ChessBase"]
[SourceQuality "1"]
[TimeControl "40/6000:2400+30"]

{[%evp 24,114,44,43,60,59,54,61,45,35,35,52,34,15,52,59,68,78,72,58,72,77,59,77,64,37,34,28,25,31,89,0,460,479,487,483,355,213,206,197,190,190,181,186,186,186,181,181,258,190,190,171,237,183,183,177,181,185,185,171,169,171,156,156,188,188,233,233,274,281,378,381,370,366,366,352,318,319,366,300,381,372,768,750,1075,954,1064,1077,29995,29996,29997,29998,29999]} 1. e4 {[%emt 0:02:28]} e5 {[%emt 0:00:00]} 2. Nf3 {[%emt 0:00:00]} Nc6 {[%emt 0:00:00]} 3. Bb5 {[%emt 0:00:00]} a6 {[%emt 0:00:00]} 4. Ba4 {[%emt 0:00:00]} Bc5 {[%emt 0:00:00]} 5. c3 {[%emt 0:00:00]} Nge7 {[%emt 0:00:00]} 6. O-O {[%emt 0:00:00]} Ng6 {[%emt 0:00:00] 6...Ba7 is the modern continuation. C64: Ruy Lopez: Classical Defence (3...Bc5) except 4 0-0 Nf6.} 7. d4 {[%emt 0:00:00]} Ba7 {[%emt 0:00:00]} 8. Re1 {[%emt 0:00:00]} O-O {[%emt 0:00:00]} 9. Be3 {[%emt 0:00:00]} d6 {[%emt 0:04:56]} 10. h3 {[%emt 0:00:00]} Bd7 {[%emt 0:05:03]} 11. Nbd2 {[%emt 0:00:00]} h6 {[%emt 0:03:11]} 12. Nf1 {[%emt 0:00:16]} Kh8 $146 {[%emt 0:10:25]} ({Predecessor:} 12... Qe8 13. dxe5 Ncxe5 14. Bxd7 Nxd7 15. Bxa7 Rxa7 16. Qd4 Ra8 17. Ne3 Qe6 18. Nf5 Qf6 19. Qxf6 Nxf6 20. e5 dxe5 21. Nxe5 Nxe5 22. Rxe5 Rfe8 {½-½ Schneider,I (2451)-Blomqvist,E (2515) Parnu Keres op-A 5th 2024 (4)}) 13. Ng3 {[%emt 0:00:10]} b5 {[%emt 0:05:05]} 14. Bc2 {[%emt 0:01:38]} Nh4 {[%emt 0:11:27]} 15. Nxh4 {[%emt 0:02:28]} Qxh4 {[%emt 0:00:03]} 16. Qd2 {[%emt 0:00:19]} Rae8 {[%emt 0:05:53]} 17. Rad1 {[%emt 0:16:17]} Bb6 {[%emt 0:06:22]} 18. b4 {[%emt 0:06:34]} exd4 {[%emt 0:08:35]} 19. cxd4 {[%emt 0:00:00]} a5 {[%emt 0:01:55]} 20. a3 {[%emt 0:00:00]} axb4 {[%emt 0:01:21]} 21. axb4 {[%emt 0:00:00]} f5 {[%emt 0:06:45]} 22. exf5 {[%emt 0:05:48]} Ne7 {[%emt 0:15:01]} ({Wrong is} 22... Nxd4 $2 23. Bxd4 Rxe1+ 24. Qxe1 $18) 23. f6 {[%emt 0:01:49]} Qxf6 {[%emt 0:01:56]} 24. Qd3 {[%emt 0:13:59]} Nf5 {[%emt 0:00:47]} 25. Nh5 {[%emt 0:01:06]} Qf7 {[%emt 0:01:54]} 26. g4 {[%emt 0:01:09]} g5 {[%emt 0:04:24]} (26... g6 $1 $14 27. Nf4 g5) 27. Rf1 {[%emt 0:02:14]} (27. gxf5 $16 Qxh5 28. f6) 27... Nxe3 $4 {[%emt 0:03:08][%mdl 8192]} (27... Nh4 $11 28. d5 Nf3+ 29. Kh1 Ne5) 28. fxe3 $18 {[%emt 0:00:00]} Qe7 {[%emt 0:00:00]} 29. Kh2 {[%emt 0:05:52]} d5 {[%emt 0:01:03]} 30. Kg2 {[%emt 0:00:00]} Qe4+ {[%emt 0:00:08]} 31. Qxe4 {[%emt 0:00:00]} dxe4 {[%emt 0:00:00]} 32. Nf6 {[%emt 0:08:28]} Rd8 {[%emt 0:00:00]} 33. Bxe4 {[%emt 0:05:28]} Be6 {[%emt 0:00:00]} 34. Ra1 {[%emt 0:07:33]} Bc4 {[%emt 0:00:00]} 35. Rf5 {[%emt 0:00:00]} Rd6 {[%emt 0:00:00]} (35... Be6 {might work better.} 36. Rf3 Bc4) 36. Nd7 $18 {[%emt 0:02:07]} Re8 {[%emt 0:00:00]} 37. Ne5 {[%emt 0:00:00]} Be6 {[%emt 0:00:00]} (37... Kg7 $142 38. Ra3 Bg8) 38. Rf3 {[%emt 0:02:06]} Kg7 {[%emt 0:00:00]} 39. Raf1 {[%emt 0:00:00]} Bc4 {[%emt 0:00:00]} 40. Nxc4 {[%emt 0:05:07]} bxc4 {[%emt 0:00:00]} 41. Bf5 {[%emt 0:41:35]} Ra8 {[%emt 0:05:06]} 42. Rc1 {[%emt 0:00:00]} Ra2+ {[%emt 0:02:18]} 43. Kf1 {[%emt 0:00:00]} Ra3 {[%emt 0:11:17]} 44. Ke2 {[%emt 0:00:00]} (44. Rxc4 Rxd4 45. Rxd4 (45. exd4 Rxf3+ 46. Kg2 Rf4 $11) 45... Bxd4 $14) 44... c3 {[%emt 0:02:58]} 45. Bc2 {[%emt 0:00:00]} Rd7 {[%emt 0:05:53]} 46. Rcf1 {[%emt 0:00:00]} Re7 {[%emt 0:01:37]} 47. Kd3 {[%emt 0:00:00]} Ra8 {[%emt 0:04:20]} 48. Kxc3 {[%emt 0:00:00]} Rd8 {[%emt 0:00:26]} 49. Kc4 {[%emt 0:00:00]} Rd6 {[%emt 0:00:56]} 50. Bb3 {[%emt 0:00:00]} Rdd7 {[%emt 0:02:01]} 51. b5 {[%emt 0:00:00]} Rd6 {[%emt 0:00:56]} 52. Kd3 {[%emt 0:00:00]} Rdd7 $2 {[%emt 0:01:32]} (52... Red7 53. Rf8 h5) 53. Rf8 $18 {[%emt 0:00:00]} Ba5 {[%emt 0:02:05]} 54. Rg8+ {[%emt 0:00:00]} Kh7 {[%emt 0:00:02]} 55. Rff8 {[%emt 0:00:00]} Bb6 {[%emt 0:01:24]} 56. Bc2 {[%emt 0:00:00]} h5 {[%emt 0:01:25]} 57. Ke2+ {[%emt 0:00:00]} Kh6 {[%emt 0:00:04]} 58. Rf6# {[%emt 0:00:00]} 1-0

[Event "Fagernes GM Open Autumn 2024"]
[Site "Fagernes"]
[Date "2024.10.13"]
[Round "9.10"]
[White "Fiskaaen, Martin Holten"]
[Black "Hillarp Persson, Tiger"]
[Result "1/2-1/2"]
[ECO "E11"]
[WhiteElo "2259"]
[BlackElo "2455"]
[Annotator "TA"]
[PlyCount "96"]
[EventDate "2024.10.03"]
[EventType "swiss"]
[EventCountry "NOR"]
[SourceTitle "playchess.com"]
[Source "ChessBase"]
[SourceQuality "1"]
[TimeControl "40/6000:2400+30"]

{[%evp 14,96,30,14,57,57,65,58,69,61,78,22,59,56,63,68,91,69,76,64,55,11,18,-13,-13,-21,-13,-13,-13,-20,-9,-13,0,0,0,0,0,0,0,-32,-20,-33,-23,-41,-35,-159,-161,-155,-140,-130,-21,-191,-70,-91,-49,-79,-55,-96,0,0,0,0,0,0,0,0,0,0,0,0,0,0,0,0,13,0,0,0,0,0,0,0,0,0,0]} 1. d4 {[%emt 0:00:00]} Nf6 {[%emt 0:01:35]} 2. c4 {[%emt 0:00:00]} e6 {[%emt 0:00:25]} 3. Nf3 {[%emt 0:00:00]} d5 {[%emt 0:00:00]} 4. g3 {[%emt 0:00:00]} Bb4+ {[%emt 0:00:00]} 5. Bd2 {[%emt 0:00:00]} Be7 {[%emt 0:00:00]} 6. Bg2 {[%emt 0:00:00]} O-O {[%emt 0:00:00]} 7. O-O {[%emt 0:00:00]} c6 {[%emt 0:00:00]} 8. b3 {[%emt 0:00:30]} c5 {[%emt 0:07:25] E11: Bogo-Indisch.} 9. cxd5 {[%emt 0:02:55]} exd5 {[%emt 0:00:00]} 10. Nc3 {[%emt 0:02:11] OK} Nc6 {[%emt 0:00:37] OK. Wit staat iets beter.} 11. dxc5 {[%emt 0:08:06] OK} Bxc5 {[%emt 0:02:09]} 12. Bg5 {[%emt 0:00:00] Fout (0.6)} (12. Bc1 $16) 12... d4 {[%emt 0:01:06] Onnauwkeurig} 13. Bxf6 {[%emt 0:02:20] OK} Qxf6 {[%emt 0:00:00]} 14. Ne4 {[%emt 0:00:00][%csl LRc5,LRf6] Fantastisch paardenconcours. OK} Qe7 {[%emt 0:00:00] OK} 15. Nxc5 {[%emt 0:00:00] OK} Qxc5 {[%emt 0:00:00]} 16. Rc1 {[%emt 0:00:00] OK} Qb6 $146 {[%emt 0:05:45]} ({Predecessor:} 16... Qd6 17. Qd2 Bf5 18. Rfd1 Rad8 19. Nh4 Bg4 20. h3 Bc8 21. Qc2 Qf6 22. Rd2 Rd6 {0-1 Minero Pineda,S (2285)-Hernandez,G (2205) Merlo U20 1990 (1)}) 17. Qd3 {[%emt 0:00:00] Voorkomt Bf5. Rfd1 is de sterke dreiging. Onnauwkeurig} h6 $1 {[%emt 0:02:44] Sterk} 18. e3 {[%emt 0:18:17] Onnauwkeurig} dxe3 {[%emt 0:00:14] OK} 19. Qxe3 {[%emt 0:00:27]} Be6 {[%emt 0:07:27] OK} 20. Rfd1 {[%emt 0:07:13]} Rfd8 {[%emt 0:01:16] Ontwijkt Nd4. OK} 21. Qe2 {[%emt 0:03:42]} Rxd1+ {[%emt 0:29:21]} 22. Rxd1 {[%emt 0:00:14]} Rd8 {[%emt 0:00:44]} 23. h3 {[%emt 0:06:50]} Rxd1+ {[%emt 0:01:16] OK} 24. Qxd1 {[%emt 0:00:00]} Qc5 {[%emt 0:01:32] OK} 25. Qd2 {[%emt 0:05:12]} b6 {[%emt 0:07:26]} 26. Kh2 {[%emt 0:03:13] Onnauwkeurig} a5 {[%emt 0:01:56] OK} 27. Ne1 {[%emt 0:08:15] OK} Qd4 {[%emt 0:02:30] OK} 28. Qe2 {[%emt 0:10:43] OK} Nb4 {[%emt 0:04:32] OK} {Beter is} 29. Be4 {[%emt 0:06:04] [#] Fout (1.2)} (29. Nf3 $15 Qc3 30. Qb5) 29... Nxa2 $1 $17 {[%emt 0:06:22][%mdl 512] Briljant} 30. Nf3 {[%emt 0:00:00] Beste} Qb4 {[%emt 0:00:00] OK} 31. Qd3 {[%emt 0:00:16] [#] Afleidend Nc3. OK} {Zwart zou moeten proberen} Qe7 {[%emt 0:01:53] Voorkomt Qd8+. Fout (1.1)} (31... Qxb3 32. Qd8#) (31... Qf8 $1 $17 {Hoopt vervolgens op ...Nc1.} 32. Nd4 Bd7) 32. Qa6 $2 {[%emt 0:00:21] Verliest partij (1.7)} (32. Qd4 $11) {Zwart zou moeten spelen} 32... Qc5 {[%emt 0:05:48] Fout (1.2)} (32... Bxb3 $2 33. Qc8+ Qf8 34. Bh7+ Kxh7 35. Qxf8 $18) (32... f5 $19 33. Bb7 Qc5 (33... Bxb3 34. Qxb6 Bf7 35. Bc8 $11)) 33. Nd4 $1 $15 {[%emt 0:03:34] Sterk} Nc3 {[%emt 0:05:13] met als doel voor ...g6. Beste} ({Ondeugdelijk is} 33... Qxd4 34. Qa8+) 34. Nxe6 $1 {[%emt 0:06:33] Sterk} fxe6 {[%emt 0:00:00][%mdl 4096] Eindspel. KQB-KQN} 35. Bg2 {[%emt 0:00:00] [#] OK} {Zwart kan beter overwegen.} e5 {[%emt 0:00:00] Fout (1.0)} (35... Qxf2 $2 {verliest.} 36. Qc8+ Kf7 37. Qc7+ (37. Qxc3 Kg8 $18) 37... Kg6 38. Qxc3 $18) (35... Nb5 $1 $17) 36. Qb7 {[%emt 0:00:04] De stelling is in evenwicht.} e4 {[%emt 0:00:00] OK} (36... Qxf2 $2 {te hebberig.} 37. Qc8+ Kh7 38. Qxc3 $18) 37. Qa8+ {[%emt 0:01:06] OK} Kf7 {[%emt 0:00:00] OK} 38. Qb7+ {[%emt 0:00:00] OK} Kf6 {[%emt 0:00:00]} 39. Kg1 {[%emt 0:01:00]} Qd4 {[%emt 0:00:04]} 40. Qc6+ {[%emt 0:00:03] OK} Kf7 {[%emt 0:00:06]} 41. Bf1 {[%emt 0:05:04] OK} b5 {[%emt 0:09:27]} 42. Bxb5 {[%emt 0:05:18] OK} Nxb5 {[%emt 0:00:08]} 43. Qxb5 $11 {[%emt 0:00:08] KQ-KQ} e3 {[%emt 0:06:28]} 44. Qb7+ {[%emt 0:07:09]} Ke6 {[%emt 0:04:48] OK} 45. Qa6+ {[%emt 0:01:56]} Kd7 {[%emt 0:01:12]} 46. Qb7+ {[%emt 0:00:55]} Kd6 {[%emt 0:03:15]} 47. Qa6+ {[%emt 0:00:32] OK} Kd7 {[%emt 0:00:54] OK} 48. Qb7+ {[%emt 0:00:05]} Kd6 {[%emt 0:02:49] Blunder waarde: Wit=0.18 (erg precies) /Zwart=0.15 (erg precies) .  Verliest partij:   	Wit=1      	---        Fout:        	Wit=2      	Zwart=3      Onnauwkeurig:    	Wit=3      	Zwart=1      OK:         	Wit=16     	Zwart=15     Beste:        	Wit=1      	Zwart=1      Sterk:        	Wit=2      	Zwart=1      Briljant:      	---       	Zwart=1} 1/2-1/2

[Event "Fagernes GM Open Autumn 2024"]
[Site "Fagernes"]
[Date "2024.10.13"]
[Round "9.11"]
[White "Aizenberg, Benny"]
[Black "Oksendal, Martin"]
[Result "1-0"]
[ECO "B87"]
[WhiteElo "2423"]
[BlackElo "2271"]
[Annotator "TA"]
[PlyCount "70"]
[EventDate "2024.10.03"]
[EventType "swiss"]
[EventCountry "NOR"]
[SourceTitle "playchess.com"]
[Source "ChessBase"]
[SourceQuality "1"]
[TimeControl "40/6000:2400+30"]

{[%evp 15,70,0,0,0,0,0,0,-12,0,-7,39,52,46,12,29,24,98,68,60,49,58,59,55,0,0,0,15,22,0,7,113,120,420,414,399,395,2401,860,2070,850,2112,1150,1042,1147,1160,1077,945,741,791,616,998,899,29964,29938,8850,6870,2437]} 1. e4 {[%emt 0:00:00]} c5 {[%emt 0:02:59]} 2. Nf3 {[%emt 0:00:00]} d6 {[%emt 0:00:00]} 3. d4 {[%emt 0:00:00]} cxd4 {[%emt 0:00:00]} 4. Nxd4 {[%emt 0:00:00]} Nf6 {[%emt 0:00:00]} 5. Nc3 {[%emt 0:00:00]} a6 {[%emt 0:00:00]} 6. Bc4 {[%emt 0:00:00]} e6 {[%emt 0:00:00]} 7. Bb3 {[%emt 0:00:00]} b5 {[%emt 0:00:00]} 8. a3 {[%emt 0:00:00]} Bb7 {[%emt 0:12:41]} 9. Be3 {[%emt 0:00:00]} Nc6 {[%emt 0:03:48]} 10. f3 {[%emt 0:10:31]} Be7 {[%emt 0:03:40]} 11. Qe2 {[%emt 0:00:00] The position is equal.} Rc8 {[%emt 0:08:20]} 12. O-O-O {[%emt 0:05:23][%cal Od4e6]} Qa5 {[%emt 0:07:24]} (12... Ne5 $11 {is more appropriate.}) 13. Nxc6 $14 {[%emt 0:10:12]} Bxc6 {[%emt 0:04:48]} 14. Kb1 {[%emt 0:07:18]} O-O {[%emt 0:05:34]} 15. h4 {[%emt 0:11:41]} Bb7 {[%emt 0:09:44]} (15... b4 $11 {remains equal.} 16. axb4 Qxb4) 16. Qe1 {[%emt 0:00:51][%cal Oc3d5] White is more active.} Qc7 {[%emt 0:05:03][%cal Od6d5]} 17. g4 {[%emt 0:02:23][%cal Bg2g4,Bg4g5][%mdl 32]} Nd7 {[%emt 0:04:25]} 18. g5 {[%emt 0:04:19]} Nc5 {[%emt 0:03:19]} 19. h5 {[%emt 0:07:48]} (19. Ba2 $14) 19... Nxb3 $11 {[%emt 0:08:14]} 20. cxb3 {[%emt 0:00:00]} b4 {[%emt 0:00:59]} 21. axb4 {[%emt 0:00:00]} d5 {[%emt 0:00:32]} 22. Rd4 {[%emt 0:10:30][%cal Re4d5]} (22. h6 $5 g6 $8 23. Rc1 $16 (23. exd5 Bxb4 24. Qe2 Bxc3 $11)) 22... a5 {[%emt 0:03:51]} (22... dxe4 $11 23. h6 (23. fxe4 Rfd8 $11) (23. Nxe4 Qc2+ 24. Ka2 Bd5 $17) 23... Rfd8 (23... exf3 $2 24. hxg7 Qe5 25. gxf8=B $18)) 23. bxa5 $16 {[%emt 0:01:22]} (23. exd5 $2 {too greedy.} axb4 24. h6 bxc3 $19) 23... e5 $2 {[%emt 0:04:04][%mdl 8192] Black cannot hold the game after this.} (23... Qxa5 $16 24. h6 (24. Ra4 Qd8 $18) 24... g6) 24. Nxd5 $18 {[%emt 0:00:38]} Qc2+ {[%emt 0:01:10]} 25. Ka2 {[%emt 0:00:01]} exd4 $2 {[%emt 0:02:03]} (25... Bd8) 26. Nxe7+ {[%emt 0:00:00]} Kh8 {[%emt 0:00:00]} 27. Bxd4 {[%emt 0:00:00]} (27. h6 $142 Rfd8 28. Qh4) 27... Rc4 {[%emt 0:01:12]} 28. Bxg7+ {[%emt 0:02:33]} (28. h6 $142 Ra4+ 29. bxa4 Qxa4+ 30. Kb1 Qxd4 31. hxg7+ Qxg7 32. Nf5 Qxg5 33. Qc3+ f6 34. Qc7 Bxe4+ 35. fxe4) 28... Kxg7 {[%emt 0:00:00]} 29. h6+ {[%emt 0:00:00]} Kh8 {[%emt 0:00:00]} 30. bxc4 {[%emt 0:00:00] aiming for Qb4.} Qxc4+ {[%emt 0:00:08]} 31. Ka1 {[%emt 0:00:00][%cal Ba2a1,Ba1b1,Bb1c1][%mdl 32]} Re8 {[%emt 0:01:51] [#]} 32. Qd1 $1 {[%emt 0:04:53][%cal Og5g6] Hoping for g6!} Ra8 {[%emt 0:00:51] [#]} (32... Qc5 33. Nd5) 33. Kb1 $1 {[%emt 0:02:46]} Bxe4+ {[%emt 0:02:44]} 34. fxe4 {[%emt 0:00:00]} Qxe4+ {[%emt 0:00:00]} 35. Kc1 {[%emt 0:00:00] Re1 would kill now.} Qf4+ {[%emt 0:00:57] Weighted Error Value: White=0.11 (very precise) /Black=0.74.  Loses game:     	---       	Black=1      Mistake:       	White=1     	Black=4      Inaccurate:     	White=2     	Black=1      OK:         	White=7     	Black=8      Best:        	White=2     	---} 1-0

[Event "Fagernes GM Open Autumn 2024"]
[Site "Fagernes"]
[Date "2024.10.13"]
[Round "9.12"]
[White "Oye-Stromberg, Alexander"]
[Black "Hansen, Torbjorn Ringdal"]
[Result "0-1"]
[ECO "E11"]
[WhiteElo "2248"]
[BlackElo "2415"]
[Annotator "RC"]
[PlyCount "72"]
[EventDate "2024.10.03"]
[EventType "swiss"]
[EventCountry "NOR"]
[SourceTitle "playchess.com"]
[Source "ChessBase"]
[SourceQuality "1"]
[TimeControl "40/6000:2400+30"]

1. d4 {[%emt 0:00:14]} Nf6 {[%emt 0:00:00]} 2. c4 {[%emt 0:00:00]} e6 {[%emt 0:00:48]} 3. Nf3 {[%emt 0:00:00]} Bb4+ {[%emt 0:00:22]} 4. Nbd2 {[%emt 0:00:05]} O-O {[%emt 0:00:00]} 5. a3 {[%emt 0:00:00]} Be7 {[%emt 0:00:00]} 6. e4 {[%emt 0:00:00]} d6 {[%emt 0:00:00]} 7. Be2 {[%emt 0:00:00]} c5 {[%emt 0:00:39]} 8. O-O {[%emt 0:02:07]} cxd4 {[%emt 0:00:29]} 9. Nxd4 {[%emt 0:00:00]} Nc6 {[%emt 0:00:00]} 10. Nxc6 {[%emt 0:00:00]} bxc6 {[%emt 0:00:00]} 11. b4 {[%emt 0:00:44]} a5 {[%emt 0:04:40]} 12. Bb2 {[%emt 0:02:01]} axb4 {[%emt 0:07:04]} 13. axb4 {[%emt 0:00:00]} Rb8 {[%emt 0:00:00]} 14. b5 {[%emt 0:06:31]} cxb5 {[%emt 0:06:50]} 15. cxb5 {[%emt 0:01:59]} Bd7 {[%emt 0:00:00]} 16. Rb1 {[%emt 0:01:30]} Qa5 {[%emt 0:28:07]} 17. e5 {[%emt 0:07:29]} dxe5 {[%emt 0:06:12]} 18. Bxe5 {[%emt 0:00:23]} Rxb5 {[%emt 0:01:51]} 19. Bxb5 {[%emt 0:00:31]} Bxb5 {[%emt 0:00:00]} 20. Re1 {[%emt 0:01:47]} Rd8 {[%emt 0:02:04]} 21. Nb3 {[%emt 0:04:09]} Qa8 {[%emt 0:04:22]} 22. Nd4 {[%emt 0:00:45]} Be8 {[%emt 0:05:42]} 23. Qf3 {[%emt 0:03:45]} Nd5 {[%emt 0:05:15]} 24. Qg3 {[%emt 0:02:51]} Bf8 {[%emt 0:02:16]} 25. h4 {[%emt 0:01:22]} h6 {[%emt 0:03:37]} 26. Rb3 {[%emt 0:00:16]} Qa6 {[%emt 0:05:06]} 27. Reb1 {[%emt 0:10:35]} f6 {[%emt 0:01:29]} 28. Rb8 {[%emt 0:00:13]} Rxb8 {[%emt 0:00:00]} 29. Bxb8 {[%emt 0:01:01]} e5 {[%emt 0:00:35]} 30. Nf5 {[%emt 0:01:49]} Nf4 {[%emt 0:00:33]} 31. Qb3+ {[%emt 0:11:16]} Bf7 {[%emt 0:01:13]} 32. Qb5 {[%emt 0:00:46]} Qa8 {[%emt 0:02:23]} 33. Ne3 {[%emt 0:02:54]} Qe4 {[%emt 0:00:00]} 34. Ba7 {[%emt 0:00:51]} Ne2+ {[%emt 0:00:00]} 35. Qxe2 {[%emt 0:02:26]} Qxb1+ {[%emt 0:00:00]} 36. Kh2 {[%emt 0:00:00]} Qb7 {[%emt 0:00:00]} 0-1

[Event "Fagernes GM Open Autumn 2024"]
[Site "Fagernes"]
[Date "2024.10.13"]
[Round "9.13"]
[White "Krivenko, Dion"]
[Black "Kanyamarala, Tarun"]
[Result "1/2-1/2"]
[ECO "A00"]
[WhiteElo "2244"]
[BlackElo "2369"]
[Annotator "RC"]
[PlyCount "78"]
[EventDate "2024.10.03"]
[EventType "swiss"]
[EventCountry "NOR"]
[SourceTitle "playchess.com"]
[Source "ChessBase"]
[SourceQuality "1"]
[TimeControl "40/6000:2400+30"]

1. Nc3 {[%emt 0:04:39]} c5 {[%emt 0:00:58]} 2. d4 {[%emt 0:00:00]} cxd4 {[%emt 0:01:16]} 3. Qxd4 {[%emt 0:00:00]} Nc6 {[%emt 0:00:00]} 4. Qd3 {[%emt 0:00:00]} g6 {[%emt 0:02:36]} 5. e4 {[%emt 0:00:17]} Bg7 {[%emt 0:00:41]} 6. Nf3 {[%emt 0:00:00]} Nf6 {[%emt 0:02:02]} 7. Nd5 {[%emt 0:01:39]} O-O {[%emt 0:02:57]} 8. c3 {[%emt 0:00:00]} d6 {[%emt 0:04:19]} 9. Be2 {[%emt 0:02:41]} Nd7 {[%emt 0:08:07]} 10. O-O {[%emt 0:01:52]} Nc5 {[%emt 0:07:08]} 11. Qe3 {[%emt 0:08:37]} e6 {[%emt 0:06:21]} 12. Nb4 {[%emt 0:02:16]} Nxb4 {[%emt 0:00:52]} 13. cxb4 {[%emt 0:00:00]} Na4 {[%emt 0:00:00]} 14. Qa3 {[%emt 0:08:26]} Bd7 {[%emt 0:01:03]} 15. Rd1 {[%emt 0:01:45]} d5 {[%emt 0:06:30]} 16. exd5 {[%emt 0:24:01]} exd5 {[%emt 0:00:00]} 17. b5 {[%emt 0:01:14]} Qe8 {[%emt 0:09:00]} 18. Qxa4 {[%emt 0:07:02]} Qxe2 {[%emt 0:00:00]} 19. Rxd5 {[%emt 0:00:00]} Rad8 {[%emt 0:13:14]} 20. Bg5 {[%emt 0:04:51]} Qxb2 {[%emt 0:03:58]} 21. Re1 {[%emt 0:00:51]} f6 {[%emt 0:00:35]} 22. Bc1 {[%emt 0:00:44]} Qc3 {[%emt 0:00:28]} 23. Bd2 {[%emt 0:05:09]} Qc8 {[%emt 0:00:23]} 24. Rc1 {[%emt 0:05:43]} Qa8 {[%emt 0:00:19]} 25. Rc7 {[%emt 0:03:26]} Be6 {[%emt 0:06:19]} 26. Rxd8 {[%emt 0:04:24]} Qxd8 {[%emt 0:00:00]} 27. Rxb7 {[%emt 0:02:14]} Bd5 {[%emt 0:00:00]} 28. Rxa7 {[%emt 0:01:10]} Bxf3 {[%emt 0:00:00]} 29. Bb4 {[%emt 0:03:45]} Bd1 {[%emt 0:00:00]} 30. Rxg7+ {[%emt 0:00:28]} Kxg7 {[%emt 0:00:00]} 31. Bxf8+ {[%emt 0:00:00]} Kxf8 {[%emt 0:00:00]} 32. Qb4+ {[%emt 0:00:12]} Qe7 {[%emt 0:00:00]} 33. Qc3 {[%emt 0:00:56]} Ba4 {[%emt 0:06:38]} 34. b6 {[%emt 0:00:00]} Bc6 {[%emt 0:00:00]} 35. h3 {[%emt 0:00:45]} Qd6 {[%emt 0:01:29]} 36. a4 {[%emt 0:00:09]} Qd1+ {[%emt 0:01:36]} 37. Kh2 {[%emt 0:00:00]} Qd6+ {[%emt 0:00:00]} 38. Kg1 {[%emt 0:00:00]} Qd1+ {[%emt 0:00:00]} 39. Kh2 {[%emt 0:00:00]} Qd6+ {[%emt 0:00:00]} 1/2-1/2

[Event "Fagernes GM Open Autumn 2024"]
[Site "Fagernes"]
[Date "2024.10.13"]
[Round "9.14"]
[White "Sidhant, Mohapatra"]
[Black "Bhagat Kush"]
[Result "1/2-1/2"]
[ECO "E63"]
[WhiteElo "2369"]
[BlackElo "2245"]
[Annotator "RC"]
[PlyCount "29"]
[EventDate "2024.10.03"]
[EventType "swiss"]
[EventCountry "NOR"]
[SourceTitle "playchess.com"]
[Source "ChessBase"]
[SourceQuality "1"]
[TimeControl "40/6000:2400+30"]

1. d4 {[%emt 0:04:44]} Nf6 {[%emt 0:00:00]} 2. c4 {[%emt 0:00:03]} g6 {[%emt 0:00:00]} 3. g3 {[%emt 0:00:00]} Bg7 {[%emt 0:00:00]} 4. Bg2 {[%emt 0:00:00]} d6 {[%emt 0:00:00]} 5. Nf3 {[%emt 0:00:59]} O-O {[%emt 0:00:00]} 6. Nc3 {[%emt 0:00:00]} Nc6 {[%emt 0:00:00]} 7. d5 {[%emt 0:00:00]} Na5 {[%emt 0:00:00]} 8. b3 {[%emt 0:00:00]} c5 {[%emt 0:00:00]} 9. Bb2 {[%emt 0:00:00]} a6 {[%emt 0:00:00]} 10. O-O {[%emt 0:00:00]} Rb8 {[%emt 0:00:00]} 11. Nd2 {[%emt 0:00:00]} b5 {[%emt 0:00:00]} 12. Qc1 {[%emt 0:00:00]} e5 {[%emt 0:01:38]} 13. dxe6 {[%emt 0:00:00]} fxe6 {[%emt 0:25:28]} 14. Rd1 {[%emt 0:11:09]} bxc4 {[%emt 0:09:18]} 15. bxc4 {[%emt 0:00:04]} 1/2-1/2

[Event "Fagernes GM Open Autumn 2024"]
[Site "Fagernes"]
[Date "2024.10.13"]
[Round "9.15"]
[White "Wallace, John Paul"]
[Black "Kanyamarala, Trisha"]
[Result "1-0"]
[ECO "E59"]
[WhiteElo "2373"]
[BlackElo "2160"]
[Annotator "RC"]
[PlyCount "89"]
[EventDate "2024.10.03"]
[EventType "swiss"]
[EventCountry "NOR"]
[SourceTitle "playchess.com"]
[Source "ChessBase"]
[SourceQuality "1"]
[TimeControl "40/6000:2400+30"]

1. d4 {[%emt 0:04:06]} Nf6 {[%emt 0:00:00]} 2. c4 {[%emt 0:00:00]} e6 {[%emt 0:00:00]} 3. Nc3 {[%emt 0:00:00]} Bb4 {[%emt 0:00:00]} 4. e3 {[%emt 0:00:00]} O-O {[%emt 0:00:00]} 5. Bd3 {[%emt 0:00:00]} d5 {[%emt 0:00:19]} 6. a3 {[%emt 0:00:00]} Bxc3+ {[%emt 0:00:52]} 7. bxc3 {[%emt 0:01:16]} dxc4 {[%emt 0:01:11]} 8. Bxc4 {[%emt 0:00:00]} c5 {[%emt 0:01:49]} 9. Nf3 {[%emt 0:00:00]} Nc6 {[%emt 0:05:45]} 10. O-O {[%emt 0:00:00]} b6 {[%emt 0:00:38]} 11. Re1 {[%emt 0:00:00]} Bb7 {[%emt 0:04:19]} 12. e4 {[%emt 0:00:16]} cxd4 {[%emt 0:03:38]} 13. cxd4 {[%emt 0:00:27]} h6 {[%emt 0:08:24]} 14. Bb2 {[%emt 0:04:29]} Na5 {[%emt 0:01:58]} 15. Bd3 {[%emt 0:00:00]} Rc8 {[%emt 0:01:00]} 16. Rc1 {[%emt 0:03:21]} Rxc1 {[%emt 0:13:43]} 17. Qxc1 {[%emt 0:00:04]} Nd7 {[%emt 0:05:27]} 18. Qf4 {[%emt 0:05:28]} Qb8 {[%emt 0:06:00]} 19. Qg4 {[%emt 0:04:38]} Nf6 {[%emt 0:01:11]} 20. Qh4 {[%emt 0:02:45]} Qd8 {[%emt 0:00:56]} 21. Re3 {[%emt 0:03:59]} Nh7 {[%emt 0:02:02]} 22. Qg3 {[%emt 0:00:02]} f5 {[%emt 0:13:58]} 23. d5 {[%emt 0:02:12]} Nf6 {[%emt 0:01:17]} 24. dxe6 {[%emt 0:09:26]} Bxe4 {[%emt 0:06:25]} 25. Bxe4 {[%emt 0:03:18]} fxe4 {[%emt 0:05:28]} 26. Rxe4 {[%emt 0:00:37]} Qe7 {[%emt 0:00:18]} 27. Re1 {[%emt 0:00:44]} Nc4 {[%emt 0:01:15]} 28. Bc1 {[%emt 0:01:11]} Nd6 {[%emt 0:00:39]} 29. Qe5 {[%emt 0:07:27]} Rc8 {[%emt 0:03:26]} 30. Nd4 {[%emt 0:09:08]} Rc5 {[%emt 0:00:12]} 31. Qf4 {[%emt 0:00:28]} Rd5 {[%emt 0:05:38]} 32. h3 {[%emt 0:02:30]} Rc5 {[%emt 0:00:34]} 33. a4 {[%emt 0:01:40]} Nd5 {[%emt 0:00:23]} 34. Qg3 {[%emt 0:05:37]} Rc3 {[%emt 0:00:29]} 35. Qe5 {[%emt 0:00:19]} Rc5 {[%emt 0:00:14]} 36. Ba3 {[%emt 0:00:41]} Nb4 {[%emt 0:00:00]} 37. Nf5 {[%emt 0:04:15]} Nxf5 {[%emt 0:00:00]} 38. Qb8+ {[%emt 0:00:00]} Kh7 {[%emt 0:00:00]} 39. Bxb4 {[%emt 0:00:00]} Qc7 {[%emt 0:00:00]} 40. Qxc7 {[%emt 0:00:00]} Rxc7 {[%emt 0:00:00]} 41. e7 {[%emt 0:39:56]} Nxe7 {[%emt 0:40:27]} 42. Rxe7 {[%emt 0:00:02]} Rc4 {[%emt 0:00:17]} 43. Bd6 {[%emt 0:01:21]} Rxa4 {[%emt 0:00:08]} 44. Be5 {[%emt 0:00:04]} Ra5 {[%emt 0:01:06]} 45. f4 {[%emt 0:01:13]} 1-0